Cogmind - Beta 13 @@@ ROGUE MODE // 2024.06.20 @ 14:39:46 Player: saltine Result: Destroyed by S-27 Virus with Autogun Performance ------------- Evolutions (5) 2500 Regions Visited (14) 2800 Robots Destroyed (115) 575 Value Destroyed (4417) 4417 Prototype IDs (20) 400 Alien Tech Used (2) 400 Bonus (2363) 2363 TOTAL SCORE: 13455 Bonus ------- High Alert Combat Kills 27 Follower Combat Kills 1079 Entered Garrisons 200 Used RIF Installer 1000 Met Zhirov 300 Friendly Fire -243 Cogmind --------- Core Integrity 0/1000 Matter 195/300 Energy 63/100 System Corruption 34% Temperature Cool (0) Movement Hovering (22) Location -4/Proximity Caves Parts ------- > --- POWER (2) -------- (None) > --- PROPULSION (6) --- Cooled Gravmag System Cooled Gravmag System Cooled Gravmag System Cooled Gravmag System > --- UTILITY (5) ------ Improved Transmission Jammer Experimental Core Shielding Advanced System Shield Relay Coupler [Swarmer] (32) System Guard > --- WEAPON (4) ------- (None) > --- INVENTORY (5) ---- Particle Accelerator Hypervelocity Gauss Rifle Long-range Missile Launcher Plasma Cutter Peak State ------------ > --- POWER ------------ Micro Nuclear Core > --- PROPULSION ------- Improved Treads Medium Treads Medium Treads Medium Treads Medium Treads Medium Treads > --- UTILITY ---------- Improved Heat Sink Advanced Heat Sink Huge Storage Unit Relay Coupler [Grunt] > --- WEAPON ----------- Heavy Laser Gatling Laser Heavy Particle Cannon Power Maul > --- INVENTORY -------- Light Angular Momentum Engine Light Angular Momentum Engine Light Fission Core Improved Treads Wheel Wheel Improved Heat Sink Advanced Heat Sink Kinecellerator Improved Light Armor Plating Relay Coupler [NC] Relay Coupler [NC] Relay Coupler [NC] Relay Coupler [Swarmer] Relay Coupler [Grunt] Relay Coupler [Grunt] Relay Coupler [Grunt] Relay Coupler [Behemoth] Gauss Rifle Advanced Assault Cannon Long-range Missile Launcher Long-range Missile Launcher Long-range Missile Launcher Improved Datajack Plasma Cutter [Rating: 61] Favorites ----------- Power Nuclear Core Engine Heavy Ion Engine Power Core Nuclear Core Propulsion Medium Treads Treads Medium Treads Leg Flexi-carbon Leg Wheel Armored Wheel Hover Unit Cooled Gravmag System Utility Huge Storage Unit Device Improved Heat Sink Storage Huge Storage Unit Processor Advanced Targeting Computer Hackware Relay Coupler [Grunt] Protection Hardened Light Armor Plating Weapon Shotgun Energy Gun Gatling Laser Energy Cannon Heavy Particle Cannon Ballistic Gun Shotgun Ballistic Cannon Assault Cannon Launcher Long-range Missile Launcher Special Weapon Improved Remote Datajack Impact Weapon Power Maul Special Melee Weapon Improved Datajack Build | -11 -10 -9 -8 -7 -7 -6 -6 -6 -6 -5 -5 -5 -5 -4 ------- Run | Yrd Mat Mat Mat Fac Sto Fac Gar Fac Ext Fac Upp Upp Zhi Pro Slots Evolved 10 | . . 2 2 2 . 2 . . . 2 . . . . Power 1 | . . . . . . . . . . 1 . . . . Propulsion 4 | . . 1 . 1 . 2 . . . . . . . . Utility 3 | . . . 1 1 . . . . . 1 . . . . Weapon 2 | . . 1 1 . . . . . . . . . . . Parts Attached 140 | 6 6 7 18 23 9 4 11 1 15 28 3 2 7 . Power 9 | 1 . 1 . 2 . . 1 . . 4 . . . . Engine 6 | 1 . 1 . 1 . . . . . 3 . . . . Core 3 | . . . . 1 . . 1 . . 1 . . . . Reactor . | . . . . . . . . . . . . . . . Propulsion 45 | 2 1 2 7 8 5 3 1 1 6 5 1 . 3 . Treads 35 | 2 1 2 6 7 4 3 1 1 3 4 1 . . . Leg 1 | . . . . . . . . . 1 . . . . . Wheel 5 | . . . 1 1 1 . . . 2 . . . . . Hover 4 | . . . . . . . . . . 1 . . 3 . Flight . | . . . . . . . . . . . . . . . Utility 35 | 1 2 1 4 6 2 1 3 . . 9 2 1 3 . Device 15 | . . . 1 3 2 1 2 . . 4 1 . 1 . Storage 3 | 1 1 . 1 . . . . . . . . . . . Processor 3 | . . . . 2 . . . . . . 1 . . . Hackware 8 | . . . . 1 . . 1 . . 4 . 1 1 . Protection 6 | . 1 1 2 . . . . . . 1 . . 1 . Artifact . | . . . . . . . . . . . . . . . Weapon 51 | 2 3 3 7 7 2 . 6 . 9 10 . 1 1 . Energy Gun 9 | 1 . . . 2 1 . 3 . . 2 . . . . Energy Cannon 3 | . . . . 1 . . . . . 2 . . . . Ballistic Gun 12 | 1 2 1 4 . 1 . . . 3 . . . . . Ballistic Cannon 8 | . 1 2 1 3 . . . . 1 . . . . . Launcher 5 | . . . 1 1 . . . . 1 1 . . 1 . Special Weapon 6 | . . . . . . . 2 . 1 2 . 1 . . Impact Weapon 3 | . . . 1 . . . . . 1 1 . . . . Slashing Weapon . | . . . . . . . . . . . . . . . Piercing Weapon . | . . . . . . . . . . . . . . . Special Melee Weapon 5 | . . . . . . . 1 . 2 2 . . . . Unidentified Prototypes 7 | . . 1 1 . . . . . . 1 . . 4 . Corrupted Parts 2 | . . . . . . . . . . 2 . . . . System Corruption 17 | . . . . . . . . . . 17 . . . . Parts Lost 66 | . . . . 19 4 . 4 . 9 27 . 3 . . Power 7 | . . . . 2 . . 1 . . 4 . . . . Propulsion 25 | . . . . 5 2 . 1 . 6 10 . 1 . . Utility 14 | . . . . 5 2 . . . 1 5 . 1 . . Weapon 20 | . . . . 7 . . 2 . 2 8 . 1 . . Highest Loss Streak 18 | . . . . 18 1 . 3 . 5 10 . 2 . . To Critical Strikes 2 | . . . . . . . . . 1 1 . . . . Average Slot Usage (%) 86 | . 94 97 99 88 96 94 99 99 98 57 25 28 30 . Engine 4 | . 14 11 9 3 . . . . . 2 . . . . Core 2 | . . . . 3 7 6 6 6 6 1 . . . . Treads 25 | . 28 30 20 24 28 39 39 39 35 12 2 . . . Wheel 1 | . . . 6 3 1 . . . 2 1 . . . . Device 7 | . . . 8 7 7 7 13 13 12 4 11 8 5 . Storage 7 | . 14 11 9 7 7 6 6 6 6 4 . . . . Processor 2 | . . . . 6 12 6 4 . . . 4 5 5 . Hackware 2 | . . . . 2 . . . 6 6 6 . 4 6 . Protection 3 | . 9 11 9 2 . . . . . 1 . . 1 . Energy Gun 4 | . 4 . . 3 9 6 6 13 10 . . . . . Energy Cannon 2 | . . . . 3 7 6 6 6 4 . . . . . Ballistic Gun 8 | . 14 14 17 6 3 6 4 . 3 5 . . . . Ballistic Cannon 7 | . 9 18 17 8 7 6 5 . 1 2 . . . . Naked Turns 61 | . . . . . . . . . . 61 . . . . Heaviest Build 113 | 14 35 45 113 112 110 111 112 103 113 113 11 15 9 2 Greatest Support 168 | 40 40 60 69 89 89 168 168 112 127 91 11 16 44 64 Greatest Overweight (x) 31 | 2 . 1 9 9 10 . 1 . 1 31 . 1 . . Average Overweight (x) 1 | . . . 5 4 3 . . . . 1 . . . . Largest Inventory Capacity 25 | 8 15 15 25 25 25 25 25 25 25 25 5 5 5 5 Average Capacity 20 | 6 8 15 22 25 25 25 25 25 25 21 5 5 5 5 Most Carried 25 | 4 8 15 21 22 21 20 25 24 25 21 5 5 4 4 Average Carried 15 | 3 7 13 17 15 14 18 22 22 23 15 5 3 3 4 Final Capacity 25 | 8 15 15 25 25 25 25 25 25 25 5 5 5 5 5 Final Carried 24 | 4 8 15 21 13 21 19 22 24 21 5 5 3 4 4 Class Distribution -------------------- 29% | Tank 22% | Mutant 22% | Bothacker-Gunner 8% | Gunner 7% | Commander-Gunner 5% | Bothacker-Mutant Dominant Class ---------------- Mutant | -10/Materials Tank | -9/Materials Tank | -8/Materials Tank | -7/Factory Gunner | -7/Storage Commander-Gunner | -6/Factory Commander-Gunner | -6/Garrison Bothacker-Gunner | -6/Factory Bothacker-Gunner | -6/Extension Bothacker-Mutant | -5/Factory Mutant | -5/Upper Caves Mutant | -5/Upper Caves Mutant | -5/Zhirov Sprinter | -4/Proximity Caves Resources | -11 -10 -9 -8 -7 -7 -6 -6 -6 -6 -5 -5 -5 -5 -4 ----------- Run | Yrd Mat Mat Mat Fac Sto Fac Gar Fac Ext Fac Upp Upp Zhi Pro Matter Collected 3847 | 217 174 608 581 386 488 75 215 14 352 640 67 30 . . Remotely 318 | . . . . 318 . . . . . . . . . . Salvage Created 4087 | . 150 638 553 298 527 50 629 116 284 842 . . . . Parts 210 | . 19 36 36 16 25 5 19 7 8 39 . . . . Haulers Intercepted 1 | . . 1 . . . . . . . . . . . . Recyclers Shooed 4 | . . . . . 2 . . . . 2 . . . . Parts Field Recycled . | . . . . . . . . . . . . . . . Retrieved Matter . | . . . . . . . . . . . . . . . Parts Self-Destructed 5 | . . . . . . . . . . . . 5 . . Prevented . | . . . . . . . . . . . . . . . Kills | -11 -10 -9 -8 -7 -7 -6 -6 -6 -6 -5 -5 -5 -5 -4 ------- Run | Yrd Mat Mat Mat Fac Sto Fac Gar Fac Ext Fac Upp Upp Zhi Pro Combat Hostiles Destroyed 94 | . 9 17 16 9 14 1 11 2 4 11 . . . . Guns 31 | . 2 7 3 3 8 1 4 . . 3 . . . . Cannons 54 | . 7 10 12 4 6 . 7 2 3 3 . . . . AOE 6 | . . . 1 2 . . . . 1 2 . . . . Classes Destroyed 14 | . 3 4 1 1 2 . . 1 2 . . . . . Worker 6 | . . . . . 1 . . . 2 3 . . . . Builder 7 | . . . 1 3 1 . . . . 2 . . . . Tunneler 1 | . . . . . . . . 1 . . . . . . Hauler 1 | . . 1 . . . . . . . . . . . . Recycler 3 | . . . . . . . . . 1 2 . . . . Watcher 2 | . 1 . 1 . . . . . . . . . . . Swarmer 17 | . 8 3 3 . 3 . . . . . . . . . Grunt 36 | . 1 5 6 5 6 . 11 . 1 1 . . . . Brawler 2 | . . 1 . . . . . . . 1 . . . . Duelist 2 | . . 1 1 . . . . . . . . . . . Sentry 24 | . . 7 6 3 4 . 1 . 1 2 . . . . Hunter 4 | . . . . . 1 1 . 1 . 1 . . . . Programmer 8 | . . . . 1 . . . 1 . 6 . . . . Behemoth 2 | . . . . . . . . . 2 . . . . . Best Kill Streak 9 | . 4 5 9 8 5 1 4 2 5 6 . . . . Combat Bots Only 7 | . 4 5 7 5 3 1 4 1 1 2 . . . . Max Kills in Single Turn 3 | . 1 2 2 3 2 1 2 1 1 3 . . . . Gunslinging . | . . . . . . . . . . . . . . . Exploded 2 | . . . 1 2 . . . . 1 2 . . . . Melee . | . . . . . . . . . . . . . . . Uniques/NPCs Destroyed . | . . . . . . . . . . . . . . . Combat | -11 -10 -9 -8 -7 -7 -6 -6 -6 -6 -5 -5 -5 -5 -4 -------- Run | Yrd Mat Mat Mat Fac Sto Fac Gar Fac Ext Fac Upp Upp Zhi Pro Hostile Shots Fired 1188 | . 69 53 59 350 156 3 74 9 132 197 . 78 . 8 Missed 388 | . 28 16 17 84 75 . 20 1 54 55 . 33 . 5 Damage Taken 11206 | . 343 460 638 2852 701 46 1035 105 1401 2811 . 766 . 48 Core 2002 | . 69 92 40 317 131 16 139 . 195 716 . 267 . 20 Absorbed by Shields 51 | . . . . . . . . . 51 . . . . . Redirected to Shielding 12 | . . . . . . . . . . . . . . 12 Regen/Repaired (Parts) 671 | . . . 168 . . . . 154 . 349 . . . . Core Remaining (%) 72 | 100 72 77 92 . 36 . . . 58 . . . . . Volleys Fired 253 | . 30 42 28 32 35 1 22 4 17 40 . 1 1 . Largest 4 | . 2 3 4 4 4 4 4 3 4 3 . 1 1 . Hottest 272 | . 55 106 139 188 268 228 272 224 224 113 . 7 43 . Shots Fired 681 | . 55 108 99 76 115 4 75 12 62 73 . 1 1 . Gun 306 | . 30 49 42 17 46 2 38 8 36 38 . . . . Cannon 340 | . 25 59 56 54 69 2 37 4 17 17 . . . . Launcher 21 | . . . 1 5 . . . . 9 5 . . 1 . Special 14 | . . . . . . . . . . 13 . 1 . . Kinetic 488 | . 55 108 98 63 52 2 25 . 33 52 . . . . Thermal 156 | . . . . 8 63 2 50 12 20 1 . . . . Explosive 21 | . . . 1 5 . . . . 9 5 . . 1 . Electromagnetic 2 | . . . . . . . . . . 2 . . . . Robot Hit Streak 21 | . 4 13 5 9 15 3 21 5 13 13 . 11 . . Robot Miss Streak 8 | . 5 6 8 5 5 1 6 3 2 4 . . . . Penetration Max 1 | . . . . . . . . . . 1 . . . . Secondary Targets . | . . . . . . . . . . . . . . . Shots Hit Robots 480 | . 21 63 58 49 78 3 56 9 81 61 . 1 . . Core Hits 247 | . 10 32 32 30 43 3 38 6 24 29 . . . . Critical Kills 3 | . . . . . . . . . . 3 . . . . Critical Parts Destroyed 7 | . . . . . . . . . 2 5 . . . . Critical Strikes 21 | . 1 3 1 2 2 . 1 . 2 9 . . . . Destroy 7 | . . . . . . . . . 2 5 . . . . Blast 10 | . 1 3 1 2 2 . 1 . . . . . . . Smash 4 | . . . . . . . . . . 4 . . . . Melee Attacks 71 | . . . 2 . . . 1 . 56 12 . . . . Impact 28 | . . . 2 . . . . . 16 10 . . . . Slashing . | . . . . . . . . . . . . . . . Piercing . | . . . . . . . . . . . . . . . Sneak Attacks 42 | . . . . . . . . . 39 3 . . . . Combat Hostiles . | . . . . . . . . . . . . . . . Follow-up Attacks . | . . . . . . . . . . . . . . . Damage Inflicted 12282 | . 386 1126 1320 1358 2139 58 1473 318 1855 2245 . 4 . . Guns 4361 | . 152 494 433 151 925 33 775 153 574 671 . . . . Cannons 5158 | . 234 626 756 944 1210 25 698 118 351 196 . . . . Explosions 2135 | . . . 131 248 . . . . 928 828 . . . . Melee 517 | . . . . . . . . . . 517 . . . . Ramming 111 | . . 6 . 15 4 . . 47 2 33 . 4 . . Kinetic 6375 | . 386 1120 1189 992 864 10 508 . 505 801 . . . . Thermal 3110 | . . . . 103 1271 48 965 271 420 32 . . . . Explosive 2135 | . . . 131 248 . . . . 928 828 . . . . Electromagnetic 34 | . . . . . . . . . . 34 . . . . Impact 517 | . . . . . . . . . . 517 . . . . Slashing . | . . . . . . . . . . . . . . . Piercing . | . . . . . . . . . . . . . . . Highest Corruption 35 | . . . 2 1 1 . . . . 35 34 26 34 34 Average Corruption 13 | . . . 2 1 1 . . . . 27 26 26 26 34 Corruption Purged 5 | . . . . . . . . . . 5 . . . . Corruption Blocked . | . . . . . . . . . . . . . . . Effects 71 | . . . 1 4 6 . . . . 38 11 7 4 . Message Errors 16 | . . . . 3 2 . . . . 5 3 2 1 . Matter Fused 12 | . . . . . . . . . . 10 2 . . . Heat Flow Errors 10 | . . . 1 . . . . . . 5 2 1 1 . Energy Discharges 9 | . . . . . 1 . . . . 5 2 1 . . Parts Rejected 2 | . . . . 1 . . . . . 1 . . . . Data Loss (minor) 11 | . . . . . 1 . . . . 5 2 1 2 . Data Loss (major) 6 | . . . . . 1 . . . . 4 . 1 . . Misfires 1 | . . . . . 1 . . . . . . . . . Alerts 1 | . . . . . . . . . . 1 . . . . Misdirections 1 | . . . . . . . . . . . . 1 . . Weapon Failures 2 | . . . . . . . . . . 2 . . . . Overload Shots . | . . . . . . . . . . . . . . . Overflow Damage 423 | . 15 . . 7 6 . . . . 395 . . . . Projectiles 28 | . 15 . . 7 6 . . . . . . . . . Explosions 43 | . . . . . . . . . . 43 . . . . Melee 352 | . . . . . . . . . . 352 . . . . Knockbacks 28 | . 1 3 4 8 6 . 2 . . 4 . . . . Impact 3 | . . . . . . . . . . 3 . . . . Kinetic 24 | . 1 3 4 8 5 . 2 . . 1 . . . . Secondary 1 | . . . . . 1 . . . . . . . . . Self-Inflicted Damage 154 | . . . . 88 2 . . . . 63 . 1 . . Shots 5 | . . . . 3 . . . . . 2 . . . . Rammed 18 | . . 2 . 2 1 . . 2 1 7 . 3 . . Targets Rammed 18 | . . 2 . 2 1 . . 2 1 7 . 3 . . Kicked . | . . . . . . . . . . . . . . . Crushed . | . . . . . . . . . . . . . . . Highest Temperature 531 | . 90 186 165 440 531 96 431 66 75 254 223 147 235 . Average Temperature 108 | . 34 66 44 232 161 52 135 28 23 57 112 87 135 . Received Heat Transfer 2810 | . 6 129 225 1212 135 . 460 . 307 255 . 81 . . Effects 16 | . . . . 5 7 . 2 . . 1 . . 1 . Shutdowns 3 | . . . . 2 1 . . . . . . . . . Energy Bleed 3 | . . . . . 2 . . . . 1 . . . . Interference 1 | . . . . . . . . . . . . . 1 . Matter Decay 1 | . . . . 1 . . . . . . . . . . Short Circuit 3 | . . . . 1 1 . 1 . . . . . . . Damage (minor) 5 | . . . . 1 3 . 1 . . . . . . . Siege Activations . | . . . . . . . . . . . . . . . Robots Corrupted . | . . . . . . . . . . . . . . . Combat Hostiles . | . . . . . . . . . . . . . . . Parts Fried 5 | . . . . . . . . . . 5 . . . . Impact Corruptions 11 | . . . . . . . . . . 11 . . . . Robots Melted . | . . . . . . . . . . . . . . . Combat Hostiles . | . . . . . . . . . . . . . . . Parts Melted 5 | . . . . . 2 . 2 1 . . . . . . Heat Transferred 5473 | . . . . 148 2261 87 1667 447 788 75 . . . . Parts Sabotaged . | . . . . . . . . . . . . . . . Parts Stolen . | . . . . . . . . . . . . . . . Parts Stripped . | . . . . . . . . . . . . . . . Power Chain Reactions . | . . . . . . . . . . . . . . . Alert | -11 -10 -9 -8 -7 -7 -6 -6 -6 -6 -5 -5 -5 -5 -4 ------- Run | Yrd Mat Mat Mat Fac Sto Fac Gar Fac Ext Fac Upp Upp Zhi Pro Peak Influence 460 | . 242 352 460 158 234 224 353 254 370 137 . . . . Initial 184 | . . 102 66 151 20 106 166 184 25 59 . . . . Average 157 | . 84 224 257 86 138 154 270 183 170 57 . . . . Maximum Alert Level 2 | . 1 1 2 . 1 1 1 1 1 . . . . . Low Security (%) 65 | 100 80 26 33 100 80 62 10 72 70 100 . . . . Level 1 33 | . 19 73 57 . 20 37 89 27 29 . . . . . Level 2 1 | . . . 8 . . . . . . . . . . . Level 3 . | . . . . . . . . . . . . . . . Level 4 . | . . . . . . . . . . . . . . . Level 5 . | . . . . . . . . . . . . . . . High Security . | . . . . . . . . . . . . . . . Max Security . | . . . . . . . . . . . . . . . Squads Dispatched 25 | . . 2 2 7 2 1 . 2 2 6 . 1 . . Investigation 3 | . . . . 1 . 1 . . 1 . . . . . Extermination 4 | . . . . 1 . . . 1 . 2 . . . . Reinforcement 14 | . . 2 2 2 2 . . 1 1 4 . . . . Assault 1 | . . . . . . . . . . . . 1 . . Garrison 3 | . . . . 3 . . . . . . . . . . Intercept . | . . . . . . . . . . . . . . . Searches Triggered . | . . . . . . . . . . . . . . . Construction Impeded 1 | . . . . . . . . . . 1 . . . . Haulers Reinforced 2 | . . . . . 1 . . . . 1 . . . . Active Scanning Responses . | . . . . . . . . . . . . . . . Cargo Convoy Interrupts . | . . . . . . . . . . . . . . . Stealth | -11 -10 -9 -8 -7 -7 -6 -6 -6 -6 -5 -5 -5 -5 -4 --------- Run | Yrd Mat Mat Mat Fac Sto Fac Gar Fac Ext Fac Upp Upp Zhi Pro Distress Signals 16 | . 2 2 3 . 5 . . 1 2 1 . . . . Communications Jammed . | . . . . . . . . . . . . . . . Distress Signals . | . . . . . . . . . . . . . . . Times Spotted 203 | . 16 23 26 13 20 1 19 4 26 34 . 17 . 4 Peak Tracking Total 16 | . 4 4 8 6 4 1 6 2 4 8 . 16 . 4 Tactical Retreats 14 | . 2 . 2 1 . . 1 . 1 5 . 2 . . Traps | -11 -10 -9 -8 -7 -7 -6 -6 -6 -6 -5 -5 -5 -5 -4 ------- Run | Yrd Mat Mat Mat Fac Sto Fac Gar Fac Ext Fac Upp Upp Zhi Pro Traps Triggered 5 | . 1 . 1 2 . . . . . 1 . . . . Indirectly . | . . . . . . . . . . . . . . . Trap Hack Attempts . | . . . . . . . . . . . . . . . Triggered . | . . . . . . . . . . . . . . . Disarmed 6 | . 6 . . . . . . . . . . . . . Reprogrammed . | . . . . . . . . . . . . . . . Reused . | . . . . . . . . . . . . . . . Traps Extracted . | . . . . . . . . . . . . . . . Installed . | . . . . . . . . . . . . . . . Triggered . | . . . . . . . . . . . . . . . Machines | -11 -10 -9 -8 -7 -7 -6 -6 -6 -6 -5 -5 -5 -5 -4 ---------- Run | Yrd Mat Mat Mat Fac Sto Fac Gar Fac Ext Fac Upp Upp Zhi Pro Machines Disabled 14 | . . 2 3 2 2 . . . 4 1 . . . . Max in Single Turn 2 | . . 1 2 1 1 . . . 1 1 . . . . Garrison Relay 2 | . . . . . . . 2 . . . . . . . Machines Repaired . | . . . . . . . . . . . . . . . Machines Dismantled 3 | . . . . . . . 2 . 1 . . . . . Machines Sabotaged . | . . . . . . . . . . . . . . . Overloaded Fab Kills . | . . . . . . . . . . . . . . . Hacking | -11 -10 -9 -8 -7 -7 -6 -6 -6 -6 -5 -5 -5 -5 -4 --------- Run | Yrd Mat Mat Mat Fac Sto Fac Gar Fac Ext Fac Upp Upp Zhi Pro Machines Accessed 48 | . 6 5 5 6 3 1 1 7 5 4 . . 5 . Terminals 34 | . 6 5 3 5 3 . 1 4 5 2 . . . . Fabricators 3 | . . . . . . . . 2 . 1 . . . . Repair Stations 3 | . . . 2 . . . . 1 . . . . . . Recycling Units 1 | . . . . . . . . . . 1 . . . . Scanalyzers . | . . . . . . . . . . . . . . . Garrison Access 2 | . . . . 1 . 1 . . . . . . . . Total Hacks 119 | . 24 9 16 14 7 2 1 11 12 5 . . 18 . Successful 56 | . 8 4 6 5 4 1 . 5 3 2 . . 18 . Failed 63 | . 16 5 10 9 3 1 1 6 9 3 . . . . Catastrophic 9 | . 1 . . 3 . . . 1 1 3 . . . . Database Lockouts . | . . . . . . . . . . . . . . . Manual 31 | . 12 5 4 1 6 . . . 2 1 . . . . Terminals 85 | . 24 9 11 12 7 . 1 6 12 3 . . . . Fabricators 3 | . . . . . . . . 2 . 1 . . . . Repair Stations 8 | . . . 5 . . . . 3 . . . . . . Recycling Units 1 | . . . . . . . . . . 1 . . . . Scanalyzers . | . . . . . . . . . . . . . . . Garrison Access 4 | . . . . 2 . 2 . . . . . . . . Terminal Hacks 42 | . 6 3 2 5 2 . . 2 3 1 . . 18 . Record 6 | . . . . . . . . . . . . . 6 . Part Schematic 4 | . . . . . . . . . . . . . 4 . Robot Analysis 5 | . . . . . . . . . 1 . . . 4 . Prototype ID Bank 6 | . . . 1 1 . . . . . . . . 4 . Open Door 3 | . . . . . . . . 1 2 . . . . . Emergency Access Points 2 | . 1 . . 1 . . . . . . . . . . Terminal Index 4 | . 1 1 . 1 1 . . . . . . . . . Unreport Threat 2 | . . 1 . 1 . . . . . . . . . . Locate Traps 3 | . . 1 1 . . . . 1 . . . . . . Disarm Traps 1 | . 1 . . . . . . . . . . . . . Security Status 1 | . 1 . . . . . . . . . . . . . Patrol Status 1 | . . . . 1 . . . . . . . . . . Registered Components 1 | . . . . . 1 . . . . . . . . . Zone Layout 3 | . 2 . . . . . . . . 1 . . . . Fabricator Hacks 2 | . . . . . . . . 1 . 1 . . . . Network Status 2 | . . . . . . . . 1 . 1 . . . . Repair Station Hacks 6 | . . . 4 . . . . 2 . . . . . . Scan Component 3 | . . . 2 . . . . 1 . . . . . . Repair 3 | . . . 2 . . . . 1 . . . . . . Recycling Unit Hacks . | . . . . . . . . . . . . . . . Scanalyzer . | . . . . . . . . . . . . . . . Garrison Access Hacks 1 | . . . . . . 1 . . . . . . . . Unlock Access 1 | . . . . . . 1 . . . . . . . . Unauthorized Hacks 5 | . 2 1 . . 2 . . . . . . . . . Terminals 5 | . 2 1 . . 2 . . . . . . . . . Assimilate 1 | . . 1 . . . . . . . . . . . . Botnet 3 | . 1 . . . 2 . . . . . . . . . Operators 1 | . 1 . . . . . . . . . . . . . Fabricators . | . . . . . . . . . . . . . . . Repair Stations . | . . . . . . . . . . . . . . . Recycling Units . | . . . . . . . . . . . . . . . Scanalyzers . | . . . . . . . . . . . . . . . Garrison Access . | . . . . . . . . . . . . . . . Data Cores Recovered . | . . . . . . . . . . . . . . . Used . | . . . . . . . . . . . . . . . Hacking Detections 39 | . 6 5 4 6 3 1 1 6 3 4 . . . . Full Trace Events 2 | . . . . 1 . . . . 1 . . . . . Feedback Events . | . . . . . . . . . . . . . . . Feedback Blocked . | . . . . . . . . . . . . . . . Robot Schematics Acquired . | . . . . . . . . . . . . . . . Robots Built . | . . . . . . . . . . . . . . . Authchips . | . . . . . . . . . . . . . . . Time . | . . . . . . . . . . . . . . . Total Robot Build Rating . | . . . . . . . . . . . . . . . Part Schematics Acquired 4 | . . . . . . . . . . . . . 4 . Parts Built . | . . . . . . . . . . . . . . . Authchips . | . . . . . . . . . . . . . . . Time . | . . . . . . . . . . . . . . . Total Part Build Rating . | . . . . . . . . . . . . . . . Parts Repaired 3 | . . . 2 . . . . 1 . . . . . . Time 106 | . . . 76 . . . . 30 . . . . . . Parts Recycled . | . . . . . . . . . . . . . . . Recycled Matter . | . . . . . . . . . . . . . . . Retrieved Matter . | . . . . . . . . . . . . . . . Retrieved Components . | . . . . . . . . . . . . . . . Parts Scanalyzed . | . . . . . . . . . . . . . . . Part Schematics Acquired . | . . . . . . . . . . . . . . . Parts Damaged . | . . . . . . . . . . . . . . . Bothacking | -11 -10 -9 -8 -7 -7 -6 -6 -6 -6 -5 -5 -5 -5 -4 ------------ Run | Yrd Mat Mat Mat Fac Sto Fac Gar Fac Ext Fac Upp Upp Zhi Pro Used RIF Installer 2 | . . . . . . . 2 . . . . . . . Threat Obfuscator 1 | . . . . . . . 1 . . . . . . . Robots Hacked 14 | . . . . . . . 1 . 2 10 . 1 . . Non-combat 4 | . . . . . . . . . 1 3 . . . . Combat 10 | . . . . . . . 1 . 1 7 . 1 . . Robot Hacks Applied 18 | . . . . . . . 1 . 4 12 . 1 . . parse_system 1 | . . . . . . . . . 1 . . . . . no_distress 1 | . . . . . . . . . 1 . . . . . drop_inventory 1 | . . . . . . . . . . 1 . . . . ignore_parts 1 | . . . . . . . . . 1 . . . . . link_fov 1 | . . . . . . . . . . 1 . . . . amplify_resonance 3 | . . . . . . . . . . 2 . 1 . . reboot_system 1 | . . . . . . . . . . 1 . . . . overwrite_iff 4 | . . . . . . . . . 1 3 . . . . streamctrl_high 1 | . . . . . . . 1 . . . . . . . formatsys_low 1 | . . . . . . . . . . 1 . . . . formatsys_high 3 | . . . . . . . . . . 3 . . . . Relay Couplers Released 9 | . . . . . . . 9 . . . . . . . Machine Destruction 9 | . . . . . . . 9 . . . . . . . Attached 6 | . . . . . . . 1 . . 4 . 1 . . Fabnet Peak Effective % . | . . . . . . . . . . . . . . . Robots Rewired 14 | . . . . . . . . . 14 . . . . . Allies Hacked . | . . . . . . . . . . . . . . . Hacks Repelled . | . . . . . . . . . . . . . . . Allies | -11 -10 -9 -8 -7 -7 -6 -6 -6 -6 -5 -5 -5 -5 -4 -------- Run | Yrd Mat Mat Mat Fac Sto Fac Gar Fac Ext Fac Upp Upp Zhi Pro Total Allies 38 | . . 1 . . 10 . 1 . 20 6 . . . . Largest Group 13 | . . 1 . . 10 10 10 . 13 2 . . . . Highest-Rated Group 491 | . . 10 . . 173 173 173 . 491 52 . . . . Highest-Rated Ally 151 | . . 10 . . 29 29 47 . 151 29 . . . . Total Orders 1 | . . . . . . . . . . 1 . . . . AID 1 | . . . . . . . . . . 1 . . . . Ally Attacks 255 | . . . . . . 26 83 . 134 12 . . . . Total Damage 4531 | . . . . . . 338 1119 . 2939 135 . . . . Kills 29 | . . . . . . 1 7 . 20 1 . . . . Allies Corrupted . | . . . . . . . . . . . . . . . Allies Melted . | . . . . . . . . . . . . . . . Intel | -11 -10 -9 -8 -7 -7 -6 -6 -6 -6 -5 -5 -5 -5 -4 ------- Run | Yrd Mat Mat Mat Fac Sto Fac Gar Fac Ext Fac Upp Upp Zhi Pro Robot Analysis Total 5 | . . . . . . . . . 1 . . . 4 . Derelict Logs Recovered 1 | . . . . . . . . . . . . 1 . . Drone Launches 2 | . . . . . . . . . . . . 2 . . Drone Recoveries 1 | . . . . . . . . . . . . 1 . . Exploration | -11 -10 -9 -8 -7 -7 -6 -6 -6 -6 -5 -5 -5 -5 -4 ------------- Run | Yrd Mat Mat Mat Fac Sto Fac Gar Fac Ext Fac Upp Upp Zhi Pro Turns Passed 7888 | 63 739 851 1021 1029 655 168 661 443 705 1083 249 120 95 6 Spaces Moved 4209 | 37 399 427 441 393 216 99 326 250 295 529 419 186 168 24 Core 152 | 9 . . . . . . . . . 143 . . . . Treads 2578 | 28 399 427 166 195 166 99 326 250 295 227 . . . . Legs . | . . . . . . . . . . . . . . . Wheels 543 | . . . 275 198 50 . . . . 20 . . . . Hover 936 | . . . . . . . . . . 139 419 186 168 24 Flight . | . . . . . . . . . . . . . . . Fastest Speed 22 | 50 160 160 160 150 230 160 160 160 160 50 50 46 38 22 Average Speed 155 | 138 160 160 199 228 238 160 163 160 168 160 58 61 46 22 Slowest Speed 1600 | 160 160 240 225 240 400 160 240 160 240 1600 70 100 50 22 Overloaded Moves 41 | . . . . . . . . . . . . 17 . 24 Propulsion Burnouts . | . . . . . . . . . . . . . . . Robots Hopped . | . . . . . . . . . . . . . . . Cave-ins Triggered . | . . . . . . . . . . . . . . . Teleports 1 | . . . . . . . . . . . . . 1 . Exploration Rate (%) 36 | 3 79 50 54 10 52 4 51 10 45 16 71 39 62 8 Regions Visited 14 Branch Regions 6 Pre-discovered Areas 3 | . . . . . . . . . . . . . 3 . Known Exits Taken 1 | . . . . . . 1 . . . . . . . . Unknown Exits Taken 12 | 1 1 1 1 1 1 . . 1 1 1 1 1 1 . Scrap Searched 4 | . . . . . . . . . . . 3 1 . . Spaces Dug 22 | . . . 2 . . . . . . . . . 20 . Terrain Destroyed 170 | . . 5 15 22 12 1 . . 14 81 . . 20 . Melee 2 | . . . 2 . . . . . . . . . . . Projectile 35 | . . 5 4 4 12 1 . . 2 7 . . . . AOE 133 | . . . 9 18 . . . . 12 74 . . 20 . Terrain Rammed . | . . . . . . . . . . . . . . . Walls Destroyed . | . . . . . . . . . . . . . . . Machines Disabled . | . . . . . . . . . . . . . . . Actions | -11 -10 -9 -8 -7 -7 -6 -6 -6 -6 -5 -5 -5 -5 -4 --------- Run | Yrd Mat Mat Mat Fac Sto Fac Gar Fac Ext Fac Upp Upp Zhi Pro Total 4922 | 46 444 505 514 463 268 105 390 282 410 679 422 191 179 24 Wait 106 | . 2 7 . 6 . . 1 24 10 56 . . . . Move 4196 | 36 398 426 440 392 215 99 325 249 294 528 418 185 167 24 Hop . | . . . . . . . . . . . . . . . Pick Up 72 | 4 4 12 12 8 6 1 14 2 5 4 . . . . Fast Attach 59 | 6 5 4 5 5 5 . 1 1 3 13 3 . 8 . Attach 51 | . . 1 3 16 1 3 6 . 6 12 . 2 1 . Detach 9 | . . 1 2 . . . 2 . 1 1 . . 2 . Swap 32 | . 1 2 10 2 3 1 4 . 6 3 . . . . Drop 40 | . 4 8 12 . 2 . 8 . 3 2 1 . . . Fire 253 | . 30 42 28 32 35 1 22 4 17 40 . 1 1 . Melee 71 | . . . 2 . . . 1 . 56 12 . . . . Ram 13 | . . . . 2 1 . . . . 7 . 3 . . Kick . | . . . . . . . . . . . . . . . Crush 5 | . . 2 . . . . . 2 1 . . . . . Escape Stasis . | . . . . . . . . . . . . . . . Rewire . | . . . . . . . . . . . . . . . Trap . | . . . . . . . . . . . . . . . Miscellaneous 15 | . . . . . . . 6 . 8 1 . . . . Route ------- -11/Scrapyard -10/Materials (discovered 4 exits: *Mat x3 / [*Min]) -9/Materials (discovered 2 exits: *Mat x2) -8/Materials -7/Factory -7/Storage -6/Factory -6/Garrison (discovered 2 exits: *Fac x2) -6/Factory -6/Extension -5/Factory -5/Upper Caves -5/Upper Caves -5/Zhirov -4/Proximity Caves History --------- Turn | Location | Event 12 | -11/Scrapyard | Discovered new exit (range 15) 64 | -11/Scrapyard | Entered Materials 85 | -10/Materials | Discovered new exit (range 15) 303 | -10/Materials | Build established: Mutant 524 | -10/Materials | Discovered new exit (range 3) 699 | -10/Materials | Discovered new exit (range 5) 785 | -10/Materials | Discovered new exit (range 8) 803 | -10/Materials | Entered another Materials area 803 | -9/Materials | Evolved 2 slots: Propulsion x1, Weapon x1 1087 | -9/Materials | Build established: Tank 1312 | -9/Materials | Discovered new exit (range 15) 1592 | -9/Materials | Discovered new exit (range 12) 1654 | -9/Materials | Entered another Materials area 1654 | -8/Materials | Evolved 2 slots: Utility x1, Weapon x1 2067 | -8/Materials | Destroyed 7 combat bots 2269 | -8/Materials | Repaired Lgt. Nuclear Core? 2446 | -8/Materials | Repaired Assault Cannon 2518 | -8/Materials | Discovered new exit (range 9) 2675 | -8/Materials | Entered Factory 2675 | -7/Factory | Evolved 2 slots: Propulsion x1, Utility x1 3109 | -7/Factory | Garrison activated, responded to threat 3235 | -7/Factory | Lost 18 parts (2p5n4u7w) 3423 | -7/Factory | Build established: Mutant 3594 | -7/Factory | Discovered new exit (range 14) 3704 | -7/Factory | Entered Storage 3764 | -7/Storage | Core integrity fell below 50% 3800 | -7/Storage | Build established: Gunner 4306 | -7/Storage | Discovered new exit (range 16) 4338 | -7/Storage | Assisted by bots powering up and referring to "LRC-V3" 4359 | -7/Storage | Entered Factory 4359 | -6/Factory | Accompanied by 10 allies 4359 | -6/Factory | Evolved 2 slots: Propulsion x2 4433 | -6/Factory | Spotted B-75 Beast 4452 | -6/Factory | Allies destroyed B-75 Beast 4527 | -6/Factory | Identified exit to Garrison 4527 | -6/Factory | Entered Garrison 4527 | -6/Garrison | Accompanied by 10 allies 4558 | -6/Garrison | Installed Relay Interface Framework 4595 | -6/Garrison | Triggered checkpoint 4626 | -6/Garrison | Expanded RIF knowledge: Threat Obfuscation 4639 | -6/Garrison | Build established: Commander-Gunner 4671 | -6/Garrison | Garrison Relay disabled 4787 | -6/Garrison | Triggered checkpoint 4851 | -6/Garrison | Triggered checkpoint 4892 | -6/Garrison | Lost 3 allies 4905 | -6/Garrison | Garrison Relay disabled 4954 | -6/Garrison | Discovered new exit (range 10) 5015 | -6/Garrison | Triggered checkpoint 5034 | -6/Garrison | Triggered checkpoint 5088 | -6/Garrison | Lost 6 allies 5103 | -6/Garrison | Lost 3 parts (1p2w) 5164 | -6/Garrison | Discovered new exit (range 12) 5188 | -6/Garrison | Entered Factory 5211 | -6/Factory | Build established: Bothacker-Gunner 5522 | -6/Factory | Repaired Broken Med. Treads 5625 | -6/Factory | Discovered new exit (range 6) 5631 | -6/Factory | Entered Extension 5773 | -6/Extension | Rescued A7 5999 | -6/Extension | Rescued a captive Derelict 6001 | -6/Extension | Rescued a captive Derelict 6125 | -6/Extension | Rescued a captive Derelict 6126 | -6/Extension | Rescued a captive Derelict 6183 | -6/Extension | Spotted B-75 Beast 6190 | -6/Extension | Spotted B-75 Beast 6213 | -6/Extension | Destroyed B-75 Beast 6232 | -6/Extension | Lost 13 allies 6241 | -6/Extension | Destroyed B-75 Beast 6267 | -6/Extension | Lost 5 parts (3n1u1w) 6331 | -6/Extension | Discovered new exit (range 2) 6336 | -6/Extension | Entered Factory 6336 | -5/Factory | Evolved 2 slots: Power x1, Utility x1 6642 | -5/Factory | System corruption reached 10% 6697 | -5/Factory | Lost 5 parts (1p2n2u) 6742 | -5/Factory | P-70 Sage assimilated allied G-50 Soldier 6873 | -5/Factory | System corruption reached 30% 6911 | -5/Factory | Lost 9 parts (1p3n1u4w) 7116 | -5/Factory | Build established: Bothacker-Mutant 7267 | -5/Factory | Released all parts (3) 7271 | -5/Factory | Core integrity fell below 50% 7296 | -5/Factory | Lost 10 parts (2p2n2u4w) 7413 | -5/Factory | Discovered new exit (range 10) 7419 | -5/Factory | Entered Upper Caves 7567 | -5/Upper Caves | Build established: Mutant 7659 | -5/Upper Caves | Discovered new exit (range 15) 7668 | -5/Upper Caves | Entered another Upper Caves area 7670 | -5/Upper Caves | Ambushed by research squad 7672 | -5/Upper Caves | Learned Factory stockpile data 7692 | -5/Upper Caves | Attracted the attention of an 0b10 outpost 7726 | -5/Upper Caves | Core integrity fell below 20% 7742 | -5/Upper Caves | Encountered a Warlord checkpoint 7785 | -5/Upper Caves | Discovered new exit (range 9) 7788 | -5/Upper Caves | Entered Zhirov 7789 | -5/Zhirov | Discovered new exit (range 5) 7802 | -5/Zhirov | Met Zhirov 7818 | -5/Zhirov | Learned location of Quarantine (-3) 7818 | -5/Zhirov | Learned location of Testing (-2) 7818 | -5/Zhirov | Learned location of Command (-1) 7821 | -5/Zhirov | Zhirov requested help retrieving the SGEMP Prototype 7829 | -5/Zhirov | Found Alien Artifact 7829 | -5/Zhirov | Identified Transdimensional Reconstructor 7829 | -5/Zhirov | Warped through subspace 7843 | -5/Zhirov | Found Alien Artifact 7843 | -5/Zhirov | Identified Integrated Reactor 7843 | -5/Zhirov | Installed Integrated Reactor, increased core energy generation (+10) 7883 | -5/Zhirov | Entered Proximity Caves 7889 | -4/Proximity Caves | Destroyed by S-27 Virus with Autogun Last Messages --------------- to determine what component this particular module is intended for, but MAIN.C data points to it being one of many associated with the FTL drive, most likely related to energy or heat transfer. 07852_ Acquired Adv. System Shield. 07854_ Acquired Prototype Device. 07854_ Identified Particle Accelerator. 07857_ Acquired Prototype Protection. 07857_ Identified Exp. Core Shielding. 07861_ Acquired Cld. Gravmag System. 07875_ System corrupted: Heat flow error (+275). 07876_ Overheating: System interference. 07876_ System Guard temporarily disabled. LOCATION=UNKNOWN GOAL=ESCAPE [Achievement: Whoosh!] 07884_ C-30 ARC bursts open, deploying its payload. 07884_ S-27 Virus unfolds itself. Map ----- +----------------------------------------------------+ | ?????????????????????????????????????????????????? | | ?????????????????????????????????????????????????? | | ?????????????????????????????????????????????????? | | ?????????????????????????????????????????????????? | | ?????????????????????????????????????????????????? | | ?????????????????????????????????????????????????? | | ?????????????????????????????????????????????????? | | ?????????????????????????????????????????????????? | | ?????????????????????????????????????????????????? | | ?????????????????????????????????????????????????? | | ?????????????????????????????????????????????????? | | ?????????????????????????????????????????????????? | | ?????????????????????????????????????????????????? | | ?????????????????????????????????????????????????? | | ?????????????????????????????????????????????????? | | ?????????????????????????????????????????????????? | | ?????????????????????????????????????????????????? | | ?????????????????????????????????????????????????? | | ???????????????#######???????????????????????????? | | ???????????????#"""""#???????????????????????????? | | ???????????????#"" ""#???????????????????????????? | | ?????####?????##"" ""#???????????????????????????? | | ?##### ###??## #" "######???????????????????????? | | ## ##?# #" "# ####????????????????????? | | " ### "" "" ##???????????????????? | | "%" ## ## @ #???????????????????? | | " ### #???????????????????? | | ### #??????????????????? | | s ### #???????????????? | | s ####??? ?????????????? | | ######## #???????? ????????????? | | ##??????## #?????????### ???????????? | | ###?????????## #???????????????????????? | | ?????????????## ## ??????????????????????? | | ??????????????# ##### ?????????????????????? | | ??????????????# ####????# ????????????????????? | | ?????????????? #????????# ???????????????????? | | ?????????????# #????????? ???????????????????? | | ?????????????# #??????????????????????????????? | | ?????????????# #??????????????????????????????? | | ?????????????? ??????????????????????????????? | | ???????????????? ???????????????????????????????? | | ?????????????????????????????????????????????????? | | ?????????????????????????????????????????????????? | | ?????????????????????????????????????????????????? | | ?????????????????????????????????????????????????? | | ?????????????????????????????????????????????????? | | ?????????????????????????????????????????????????? | | ?????????????????????????????????????????????????? | | ?????????????????????????????????????????????????? | +----------------------------------------------------+ Best States ------------- Heat Dissipation 70 Energy Generation 24 Energy Capacity 280 Matter Stores 300 Matter Capacity 300 Sight Range 16 Terrain Scan Density 10 Corruption Containment 8 Armor Coverage 300 Core Shielding 40 Evasion (%) 57 Targeting Accuracy 14 Recoil Reduction 6 Particle Charging 15 Kinecelleration 30 Offensive Hacking 10 Defensive Hacking 14 Relay Coupler Types 2 Relay Coupler Value 46 Item Schematics ----------------- Assault Drone Bay | -5/Zhirov | Free Exp. Heat Sink | -5/Zhirov | Free Exp. Optical Array | -5/Zhirov | Free Imp. Arc Thrower | -5/Zhirov | Free Robot Schematics ------------------ None Fabricated ------------ Nothing Alien Tech Used ----------------- Transdimensional Reconstructor Integrated Reactor Achievements -------------- Assimilation Complete Error 47 Factory Defaults Whoosh! Challenges ------------ None Game ------ Seed BiomechanicalHybridRailgun Manual? 0 Play Time 02:05:53 Cumulative 48.7 hours Start 2024.06.19 @ 19:14:21 End 2024.06.20 @ 14:39:46 Sessions 3 Manual Loads 0 Difficulty Rogue Special Mode None Game No. 59 Rogue 59 Adventurer 0 Explorer 0 Win Type - Total 1 Types 1/0/0/0/0/0/0/0/0 Lore% 38 Gallery% 39 Achievement% 34 Wizard Run 0 Options --------- Layout 1 ASCII 0 Keyboard 0 Movement Arrows Keybinds 0 Fullscreen 2 Font 24/Smallcaps Map View 50x35 Zoom Use 0% Tactical HUD 1 Map Filters NONE Filters NONE Steam 1 RUN: 5a16e777-d031-4a7f-bc77-96194eb5eba2